Workbook

Sheet MATRIX
C3: Energy Efficiency programmes in the building sector implemented in the Energy Community Contracting Parties
C5: Donor/IFI | D5: Name of Project | E5: Type of Financing | F5: Status | G5: Type of building category | H5: Type of intervention | I5: Budget MEUR | J5: Level | K5: Start | L5: End | M5: Number of buildings | N5: Energy Savings in KWh | O5: Co2 Saving in Kt Co2eq | P5: Other Benefits | Q5: Total Energy Savings per country | R5: Total Co2 Savings per country
B7: Albania | C7: GGF | D7: Banka Kombetare Tregtare | E7: Loan | F7: Ongoing | G7: Factories, warehouses, etc. | I7: 25 | K7: 2012 | Q7: =SUM(N7:N12) -> 68000000 | R7: =SUM(O7:O12) -> 21250
C8: EBRD | D8: Fondi BESA | E8: Loan | F8: Ongoing | G8: Single dwellings, Apartments/multi-residential dwellings | I8: 1.5 | J8: National | N8: 68000000 | O8: 21250
C9: EBRD | D9: loan to Union Bank Albania | E9: Loan | F9: Ongoing | G9: Single dwellings, Apartments/multi-residential dwellings | H9: Decentralized RES, Heating and Cooling | I9: 6 | J9: National
C10: GGF | D10: Launching NLB Razvojna banka a.d. Banja Luka's new energy efficiency loan program | E10: Loan, Other | G10: Single dwellings, Apartments/multi-residential dwellings, Retail and Services | H10: Decentralized RES, Heating and Cooling | I10: 5 | K10: 2011
C11: KfW | D11: Program for energy-efficient renovation of dormitories at the University of Tirana, Phase I and II | E11: Grant, Loan | F11: Ongoing | G11: Education and Research | H11: General improvements | I11: 6.5 | J11: Municipal
C12: KfW | D12: Program for energy-efficient rehabilitation of dormitories at the University of Tirana, Phase I and II | E12: Grant, Loan | F12: Ongoing | G12: Education and Research | H12: General improvements | I12: 3 | J12: Municipal
C13: EBRD, EU | D13: EBRD, EU and Austria Promote Energy Efficiency | E13: Grant, Loan | F13: Ongoing | G13: Single dwellings, Apartments/multi-residential dwellings | I13: 7 | K13: 2020
B17: Bosnia and Herzegovina | C17: EBRD | D17: Green residential loans to UniCredit | E17: Loan | F17: Ongoing | G17: Single dwellings, Apartments/multi-residential dwellings | H17: Doors and windows, Heating and Cooling, Insulation, Decentralized RES | I17: 12 | J17: Municipal | K17: 2017 | Q17: =SUM(N17:N28) -> 101200000 | R17: =SUM(O17:O28) -> 51.86
C18: EBRD | D18: Loan to microfinance provider MKF Partner | E18: Loan | F18: Ongoing | G18: Single dwellings, Apartments/multi-residential dwellings, Retail and Services | I18: 5 | J18: National | K18: 2018
C19: GGF | D19: Senior loan to MCF Sunrise | E19: Loan | F19: Ongoing | I19: 1.5 | J19: National | K19: 2018 | N19: 5500000 | O19: 2.1
C20: GGF | D20: Senior loan investment in Partner Microcredit Foundation (Partner MCF) | E20: Loan | F20: Ongoing | G20: Single dwellings | H20: Insulation | I20: 5 | J20: National | K20: 2017 | N20: 41000000 | O20: 12.4
C21: GGF | D21: enhancing Microcredit Foundation LIDER’s green lending portfolio | E21: Loan | F21: Ongoing | G21: Single dwellings, Apartments/multi-residential dwellings, Factories, warehouses, etc. | H21: Decentralized RES | I21: 1 | J21: National | K21: 2019
C22: GGF | D22: developing and marketing dedicated energy-efficiency lending products by Mikrofin | E22: Loan | F22: Ongoing | G22: Single dwellings, Apartments/multi-residential dwellings, Factories, warehouses, etc. | H22: Doors and windows, Insulation | I22: 2 | K22: 2019
C23: GGF | D23: To launch the first energy efficiency-specific product in Bosnia and Herzegovina's microfinance sector through Partner MCF | E23: Loan | G23: Single dwellings, Apartments/multi-residential dwellings, Factories, warehouses, etc. | H23: Doors and windows, Heating and Cooling, Insulation | I23: 1.5 | J23: National | K23: 2012 | N23: 5100000 | O23: 1.7
C24: GGF | D24: Credit line to strengthen UniCredit Bank a.d.’s lending capacity for EE projects at the retail and MSME levels | E24: Loan, Other | G24: Single dwellings, Apartments/multi-residential dwellings, Retail and Services | H24: Doors and windows, Heating and Cooling, Insulation, Decentralized RES | I24: 10 | J24: Municipal | K24: 2013 | N24: 37000000 | O24: 30.86
C25: GGF | D25: senior loan contract to expand Microcredit Foundation's lending activities predominantly in the rural parts of Bosnia and Herzegovina | E25: Loan | G25: Single dwellings | H25: Doors and windows, Heating and Cooling, Insulation | I25: 4 | J25: National | K25: 2014 | N25: 12600000 | O25: 4.5
C26: Other | D26: Green economic development (GED) financed by the Government of Sweden, the Environmental Fund of the Federation of Bosnia and Herzegovina and the Environmental Protection and Energy Efficiency Fund of Republika Srpska and implemented by UNDP | G26: Education and Research, Health care, Public, government buildings | H26: General improvements | K26: 2013 | L26: 2018 | M26: 137 | O26: 0.3 | P26: Annual savings: -4 million KM in public budgets; -300 tonnes CO2 emissions; -55% of energy consumptions. Other benefits: +creating over 700 green jobs, +improving working and living conditions for over 109,000 users.
C27: KfW | D27: Credit Program for Energy Efficiency Improvements in Residential Housing | E27: Loan, Grant | F27: Ongoing | G27: Apartments/multi-residential dwellings, Single dwellings, Retail and Services, Offices, Other types of energy-consuming buildings | H27: General improvements, Doors and windows, Heating and Cooling, Insulation, Automation, Deep renovation | I27: 18.5 | K27: 2018 | L27: 2025 | P27: 20% reduction of CO2- emissions; 20% reduction in energy consumption
C28: KfW | D28: Energy efficiency in public buildings | E28: Loan, Grant | F28: Ongoing | G28: Education and Research | H28: General improvements, Doors and windows, Heating and Cooling, Insulation | I28: 19.5 | J28: National | K28: 2020 | L28: 2023 | M28: 40 | P28: Expected energy demand of building stock reduced by at least 30%; Greater comfort level of pupils and teachers, poverty alleviation through focus on underdeveloped parts of the country
C29: WB | D29: Energy Efficiency Project (BEEP AF) | E29: ESCO, Other | F29: Ongoing | G29: Education and Research, Health care, Public, government buildings | I29: 27.3 | J29: National | K29: 2014 | L29: 2024 | M29: 174 | N29: 1322527 | O29: 504.653
B34: Kosovo* | C34: EBRD | D34: loan to finance institution Kreditimi Rural i Kosoves (KrK), TEB Banka në Kosovë, Agjencioni për Financim në Kosovë (AFK) | E34: Loan | F34: Ongoing | G34: Single dwellings, Apartments/multi-residential dwellings | H34: Doors and windows, Heating and Cooling, Insulation, Decentralized RES | I34: 8.5 | J34: National | K34: 2017 | Q34: =SUM(N34:N41) -> 26400000 | R34: =SUM(O34:O41) -> 120.2
C35: EBRD | D35: Kosovo Sustainable Energy Projects (KoSEP) | E35: Loan | F35: Finished | G35: Single dwellings, Apartments/multi-residential dwellings | H35: Doors and windows, Insulation | I35: 12 | J35: National | K35: 2010 | L35: 2015 | M35: 3100 | N35: 25000000
C36: GGF | D36: senior loan to Agjencioni për Financim në Kosovë (AFK) | E36: Loan, Other | F36: Ongoing | G36: Single dwellings, Apartments/multi-residential dwellings, Retail and Services, Factories, warehouses, etc. | I36: 1 | J36: Municipal | K36: 2016 | N36: 500000 | O36: 0.2
C37: KfW | D37: Energy sector program (district heating): Improvement of district heating systems in Pristina | E37: Loan, Grant | F37: Ongoing | G37: Apartments/multi-residential dwellings, Education and Research, Public, government buildings, Tourism, Health care | H37: Heating and Cooling | I37: 37 | J37: Municipal | O37: 90 | P37: Ensure continuous heating for 60,000 inhabitants, public institutions such as the Pristina University Clinic (86,000 m²) and private business such as hotels (which might increase their market value due to increased comfort and lower heating costs)
C38: WB | D38: Energy Efficiency and Renewable Energy Project | F38: Ongoing | G38: Public, government buildings | I38: 15 | J38: National | K38: 2017 | L38: 2022 | M38: 140 | N38: 900000 | O38: 30
D39: EE improvement in public institution buildings at the local level through KEEF | E39: Grant | F39: Planned | G39: Public, government buildings | H39: General improvements | J39: National
D40: Reliable Energy Landscape Project - financing for residential sector | E40: Grant | F40: Planned | G40: Apartments/multi-residential dwellings | H40: General improvements | I40: 17.6 | J40: National
B43: Montenegro | C43: GGF | D43: senior loan to the microfinance institution Alter Modus | E43: Loan, Other | F43: Ongoing | G43: Single dwellings, Apartments/multi-residential dwellings, Factories, warehouses, etc. | H43: Doors and windows, Insulation | I43: 1.5 | J43: National | K43: 2019 | Q43: =SUM(N43:N50) -> 47050000 | R43: =SUM(O43:O50) -> 97.63327
C44: KfW | D44: Energy Efficiency in Public Buildings, Phase I and II | E44: Loan | F44: Ongoing | G44: Education and Research, Public, government buildings, Health care | H44: Deep renovation | I44: 23 | J44: National | K44: 2012 | L44: 2020 | M44: 33 | N44: =14.9*1000000 -> 14900000
C45: WB | D45: Second Energy Efficiency Project (MEEP2) | E45: ESCO, Other | F45: Ongoing | G45: Health care | H45: Deep renovation | I45: 6.77 | J45: National | K45: 2018 | L45: 2023 | M45: 18 | N45: 23000000 | O45: 3.21127
C46: WB | D46: Energy Efficiency | F46: Finished | G46: Education and Research, Health care | I46: 8.6 | J46: National | K46: 2008 | L46: 2018 | M46: 27 | N46: 150000 | O46: 60.75
C47: WB | D47: Montenegro Energy Efficiency Additional Financing | F47: Finished | G47: Health care | I47: 6.2 | J47: Municipal | K47: 2013 | M47: 12-14
C48: KfW | D48: Energy Efficiency in Public Buildings, Phase III | E48: Loan, Grant | F48: Planned | G48: Education and Research, Public, government buildings, Other types of energy-consuming buildings | H48: Doors and windows, Heating and Cooling, Insulation, General improvements, Decentralized RES, Automation, Deep renovation | I48: 50 | J48: National | K48: 2020 | L48: 2025 | M48: 25-30 | N48: 9000000 | O48: 33.672 | P48: Greater comfort level of users
B52: North Macedonia | C52: GGF | D52: Partnership with Ohridska Banka, Société Générale Group | E52: Loan | F52: Ongoing | I52: 4 | J52: National | K52: 2015 | N52: 24000000 | O52: 7500 | Q52: =SUM(N52:N65) -> 154413284 | R52: =SUM(O52:O65) -> 21298.736
C53: GGF | D53: HalkBank AD Skopje | E53: Loan | G53: Single dwellings, Apartments/multi-residential dwellings, Retail and Services, Factories, warehouses, etc. | H53: Insulation, Heating and Cooling | I53: 15 | K53: 2010 | N53: 44290000 | O53: 13770
C54: EBRD | D54: Loan to Procredit Bank | E54: Loan | F54: Ongoing | G54: Single dwellings, Apartments/multi-residential dwellings | H54: Insulation, Deep renovation | I54: 1 | J54: National
C55: EBRD | D55: Boosting household energy efficiency through Sparkasse Bank Makedonija | E55: Loan | F55: Ongoing | G55: Single dwellings, Apartments/multi-residential dwellings | I55: 2 | J55: National | K55: 2017
C56: GGF | D56: Loan to Halkbank Skopje to increase energy efficiency (EE) | E56: Loan, Other | F56: Ongoing | G56: Single dwellings, Apartments/multi-residential dwellings, Factories, warehouses, etc. | I56: 10 | J56: National | K56: 2017 | N56: 50000000 | O56: 15
C57: GGF | D57: second senior facility in Macedonian Ohridska Banka | E57: Loan, Other | F57: Ongoing | I57: 10 | J57: National | K57: 2019 | N57: 26330000 | O57: 7.27
C58: KfW | D58: Energy-efficient rehabilitation of student dormitories in North Macedonia financed by KfW loan, REEEP+ grant | E58: Loan, Grant | F58: Ongoing | G58: Education and Research, Public, government buildings, Other types of energy-consuming buildings | H58: General improvements, Doors and windows, Heating and Cooling, Insulation, Decentralized RES, Automation, Deep renovation | I58: 24.8 | J58: National | K58: 2020 | L58: 2025 | M58: 17 | N58: 5905284 | O58: 2.536 | P58: Significant improvement of the comfort of the students and possible positive spill over effect on the importance of EE measures.
C59: KfW | D59: Sector program to promote energy efficiency and renewable energies: Construction of a district heating system in the city of Bitola based on the introduction of CHP in Bitola thermal power plant | E59: Loan | F59: Planned | G59: Apartments/multi-residential dwellings | H59: Heating and Cooling | I59: 57 | J59: Municipal
C60: WB | D60: North Macedonia Public Sector Energy Efficiency Project | E60: Loan, Other | F60: Planned | G60: Public, government buildings | I60: 26 | J60: Municipal | K60: 2019
D61: MoE - PROGRAM FOR PROMOTING RENEWABLE ENERGY SOURCES AND ENCOURAGEMENT OF ENERGY EFFICIENCY IN HOUSEHOLDS | E61: Grant | F61: Ongoing | G61: Apartments/multi-residential dwellings | H61: Doors and windows, Heating and Cooling, Decentralized RES | I61: 5.69 | J61: National | K61: 2017 | L61: 2022 | M61: 15175 | N61: 3888000 | O61: 3.93
D62: Program for EE in City of Skopje for 2018-2020 | E62: Other | F62: Ongoing | G62: Transport infrastructure, Public, government buildings | H62: Doors and windows, Heating and Cooling, Insulation, Decentralized RES | I62: 2.48 | J62: Municipal | K62: 2018 | L62: 2020
D63: Program for EE renovations in Municipality Karposh | E63: Other | F63: Ongoing | G63: Apartments/multi-residential dwellings, Public, government buildings | H63: Doors and windows, Heating and Cooling, Insulation, General improvements, Decentralized RES, Deep renovation | I63: 0.71 | J63: Municipal | K63: 2017 | L63: 2022
D64: Program for renovation and sanation for the primary schools and kinder garden in municipality Center Skopje | E64: Other | F64: Planned | G64: Education and Research, Public, government buildings | H64: Doors and windows, Insulation, General improvements, Deep renovation | I64: 0.47 | J64: Municipal | K64: 2020 | L64: 2020 | M64: 10
B67: Serbia | C67: GGF | D67: ProCredit Bank | E67: Loan | F67: Ongoing | G67: Apartments/multi-residential dwellings, Factories, warehouses, etc., Single dwellings | H67: Automation | I67: 20 | J67: National | K67: 2015 | Q67: =SUM(N67:N76) -> 160100000 | R67: =SUM(O67:O76) -> 362.25
C68: GGF | D68: Čačanska Banka energy efficiency loan | E68: Loan | F68: Ongoing | G68: Single dwellings, Apartments/multi-residential dwellings, Factories, warehouses, etc., Retail and Services | H68: Doors and windows, Heating and Cooling, Insulation | I68: 5 | J68: Municipal | K68: 2011
C69: EBRD | D69: UniCredit Bank Serbia | E69: Loan | F69: Ongoing | G69: Single dwellings, Apartments/multi-residential dwellings | H69: Doors and windows, Heating and Cooling, Insulation, Decentralized RES | I69: 5 | J69: National
C70: GGF | D70: Long-term loan to Halkbank a.d. Beograd | E70: Loan, Other | F70: Ongoing | G70: Single dwellings, Apartments/multi-residential dwellings | I70: 5 | J70: National | K70: 2017 | N70: 43000000 | O70: 13
C71: GGF | D71: loan agreement with Komercijalna Banka AD Beograd | E71: Loan | G71: Single dwellings, Apartments/multi-residential dwellings, Retail and Services, Factories, warehouses, etc., Public, government buildings | H71: Heating and Cooling | I71: 25 | J71: National | K71: 2012 | N71: 92000000 | O71: 30
C72: GGF | D72: Loan agreement to expand Banca Intesa a.d. Beograd's lending capacity for energy efficiency (EE) projects | E72: Loan | G72: Single dwellings, Apartments/multi-residential dwellings | H72: Doors and windows, Heating and Cooling, Insulation | I72: 7 | J72: National | K72: 2012 | N72: 20000000 | O72: 6.5
C73: KfW | D73: Energy efficiency in public buildings: Schools (following the Serbia Energy Efficiency Program financed by the World Bank) | E73: Loan | F73: Ongoing | G73: Education and Research | H73: General improvements | I73: 15 | M73: 30
C74: KfW | D74: Energy efficiency in public buildings, Phase II: Buildings from the health, education and administration sectors | E74: Loan, Grant | F74: Ongoing | G74: Education and Research, Public, government buildings, Health care | H74: General improvements, Doors and windows, Heating and Cooling, Insulation, Automation, Deep renovation | I74: 22.3 | J74: National | K74: 2020 | L74: 2025 | M74: 50-60 | N74: 4000000 | O74: 8.75 | P74: Greater comfort level of users
C75: KfW | D75: Rehabilitation of district heating systems in Serbia (DH operator: Toplanas) | E75: Loan | F75: Planned | G75: Cross sectorial, Other types of energy-consuming buildings | H75: Heating and Cooling | I75: 32 | J75: National | K75: 2020 | L75: 2025 | O75: 70 | P75: Reduction of heat losses 15 % (on the basis of difference of the primary energy content of the fuel in MWh and the heat delivered at the substations)
C76: WB | D76: Enhancing Infrastructure Efficiency and Sustainability Program for Results (P4R) | F76: Ongoing | G76: Public, government buildings | I76: 40 | J76: National | K76: 2017 | L76: 2021 | M76: 19 | N76: 1100000 | O76: 234
C77: WB | D77: Energy Efficiency Project (Serbia) Additional Financing | F77: Finished | G77: Public, government buildings, Health care | I77: 25.6 | K77: 2007 | M77: 96
C78: KfW | D78: Greening the Public Sector, Energy Efficient Reconstruction of the VMA Hospital, phase I | E78: Grant, Loan | F78: Planned | G78: Health care | H78: Doors and windows, Insulation, Heating and Cooling, General improvements, Decentralized RES, Automation, Deep renovation | I78: 82 | J78: National | K78: 2020 | L78: 2025 | M78: 1 | N78: 48985000 | O78: 48.073 | P78: Sustainable and significant reduction of VMA´s energy consumption and reduction of Greenhouse Gas Emissions as well as improvement of the quality of hospital-specific usage requirements through a holistic refurbishment approach.
C79: KfW | D79: Promotion of Renewable Energies: Developing the Biomass Market in the Republic of Serbia (District Heating), financed by KfW and SECO | E79: Grant, Loan | F79: Ongoing | G79: Cross sectorial, Other types of energy-consuming buildings | H79: Heating and Cooling | I79: 27 | J79: National | K79: 2017 | L79: 2024 | P79: Climate and environmental protection (Savin gs in tons of C02 emissions per year of at least 70% and Savin gs of at least 70 % of S02-emissions per year)
B83: Georgia | C83: GGF | D83: Loan to M2 Real Estate | E83: Loan | F83: Ongoing | G83: Apartments/multi-residential dwellings | H83: Doors and windows, Heating and Cooling, Insulation, Decentralized RES | I83: 21 | J83: Municipal | K83: 2015 | M83: 1900 | N83: 8800000 | O83: 1600 | Q83: =SUM(N83:N95) -> 13627630 | R83: =SUM(O83:O95) -> 47431.91
C84: GGF | D84: Senior Loan for Bank of Georgia | E84: Loan | I84: 15 | J84: Municipal | K84: 2014
C85: GGF | E85: Loan | F85: Ongoing | G85: Single dwellings, Apartments/multi-residential dwellings, Retail and Services, Factories, warehouses, etc. | H85: Doors and windows, Heating and Cooling, Insulation | J85: Municipal
C86: EBRD | D86: Caucasus Sustainable Energy Financing Facility | E86: Loan | F86: Ongoing | G86: Factories, warehouses, etc., Health care | H86: Insulation, Heating and Cooling, Decentralized RES | I86: 100 | K86: 2013 | L86: 2020 | N86: 227630 | O86: 45830
C87: GGF | D87: Senior loan to Bank Republic | E87: Loan | F87: Ongoing | G87: Single dwellings, Apartments/multi-residential dwellings | I87: 4.5 | J87: National | K87: 2016 | N87: 2000000 | O87: 1
C88: GGF | D88: Senior loan to JSC MFO Crystal (Crystal) | E88: Loan, Other | F88: Ongoing | G88: Single dwellings, Factories, warehouses, etc. | H88: Decentralized RES | I88: 1.3 | K88: 2018 | N88: 2600000 | O88: 0.91
C89: GGF | D89: Loan to Bank of Georgia Group PLC | E89: Loan, Other | F89: Ongoing | G89: Retail and Services, Factories, warehouses, etc. | H89: Decentralized RES | I89: 22.8 | J89: National | K89: 2019
C90: NEFCO, E5P | D90: Energy Efficiency Improvements in Public Buildings and Use of Renewables and Alternative Energy in Georgia | E90: Grant, Loan | F90: Ongoing | G90: Public, government buildings | H90: Doors and windows, Heating and Cooling, Insulation, Decentralized RES | I90: 4.7 | K90: 2017 | M90: 25 (70,000m2) | P90: Improvement living conditions for public servants, school kids and other users of public buildings and sports
C91: Council of Europe Development Bank (CEB), E5P | D91: Energy Efficiency in Public Schools in Tbilisi; also includes seismic retro-fitting measures | E91: Grant, Loan | G91: Education and Research | I91: 22 | K91: 2015 | M91: 25 | P91: at least 15 000 school children will benefit
C92: KfW | D92: Energy efficiency measures and harmonization with EU energy efficiency standards in buildings: Selected public buildings (most of them kindergardens) in the city of Batumi, Phase I and II | E92: Grant, Loan | F92: Ongoing | G92: Public, government buildings, Education and Research | H92: General improvements | I92: 7.5 | J92: Municipal | P92: -20% annual energy consumption +support urban development of Batumi +improve learning and working conditions in those buildings
B98: Moldova | C98: EBRD | D98: Moldova Residential Energy Efficiency Financing Facility (MoREEFF) | E98: Loan | G98: Single dwellings, Apartments/multi-residential dwellings | H98: Doors and windows, Heating and Cooling, Insulation | I98: 7 | J98: National, Municipal | M98: 1800 | N98: 17000000 | O98: 3200 | Q98: =SUM(N98:N104) -> 356800000 | R98: =SUM(O98:O104) -> 63903.8
C99: EBRD | D99: Moldovan Sustainable Energy Financing Facility - MoSEFF | E99: Loan | F99: Finished | G99: Factories, warehouses, etc. | H99: Doors and windows, Insulation, Decentralized RES | I99: 42 | J99: National | K99: 2011 | L99: 2017 | N99: 323000000 | O99: 60700
C100: GGF | D100: Senior loan for Microinvest aimed at funding dedicated EE loans for retail and business clients, predominantly micro and small enterprises (MSEs) | E100: Loan | G100: Retail and Services | H100: Doors and windows, Heating and Cooling, Insulation | I100: 2 | J100: National | K100: 2014 | N100: 16800000 | O100: 3.8
C101: EBRD, E5P | D101: Chisinau Energy Efficiency financed by EBRD loan, E5P grant | E101: Grant, Loan | G101: Public, government buildings, Apartments/multi-residential dwellings, Health care | H101: Doors and windows, Heating and Cooling, Insulation, General improvements | I101: 25.3 | K101: 2016
C102: EBRD, E5P | D102: Balti District Heating financed by EBRD loan, E5P grant | E102: Grant, Loan | F102: Finished | G102: Apartments/multi-residential dwellings | H102: Heating and Cooling | I102: 10 | J102: Municipal | K102: 2015 | P102: Among other measures: installation of 169 individual heating substations in 130 residential buildings
B107: Ukraine | C107: EBRD | D107: IQ Energy (Ukrainian Residential EE Financing Facility) | E107: Loan, Grant | F107: Ongoing | G107: Single dwellings, Apartments/multi-residential dwellings | H107: Doors and windows, Heating and Cooling, Insulation, Decentralized RES | I107: 75 | J107: National | K107: 2016 | M107: 30000 | Q107: =SUM(N107:N125) -> 5400000 | R107: =SUM(O107:O125) -> 260
C108: Other | D108: Among other interventions: Upgrade of heating infrastructures in municipalities (e.g. City of Vinnytsia) under Swiss Cooperation Programme "Sustainable energy management and urban development" | G108: Apartments/multi-residential dwellings | H108: Heating and Cooling | I108: 30 (32 MCHF) for all interventions incl. District heating | J108: Municipal | K108: 2015 | L108: 2018 | P108: Increased energy efficiency and improved urban infrastructure lead to better living conditions, sustainable economic development, and reduced greenhouse gas emissions.
C109: NEFCO, E5P, Other | D109: Energy Efficiency Improvement of the District Heating system in Horishni Plavni financed by NEFCO loan, E5P grant and funding from the city of Horishni Plavni | E109: Loan, Grant | F109: Planned | G109: Apartments/multi-residential dwellings | H109: Heating and Cooling | I109: 7.72 | J109: Municipal | K109: 2019
C110: NEFCO, E5P | D110: “Energy Efficiency in Public Buildings in Lutsk City” financed by NEFCO loan, E5P grant, funding from the city of Lutsk | E110: Grant, Loan | F110: Ongoing | G110: Public, government buildings | H110: Doors and windows, Heating and Cooling, Insulation, General improvements, Automation | I110: 7.3 | J110: Municipal | K110: 2018
C111: EIB, E5P | D111: Kryvyi Rih District Heating | E111: Grant, Loan | F111: Ongoing | G111: Apartments/multi-residential dwellings | H111: Heating and Cooling | I111: 38 | J111: Municipal | K111: 2016 | O111: 220 | P111: Improved customer service
C112: NEFCO, E5P, Other | D112: Nordic Energy Efficiency and Humanitarian Support Initiative – NIU financed by NEFCO, Nordic Environmental Development Fund, E5P | E112: Grant, Loan | F112: Ongoing | G112: Education and Research, Public, government buildings | H112: Doors and windows, Heating and Cooling, Insulation | I112: 9 | J112: Municipal | K112: 2015
C113: Other | D113: New energy-efficiency initiative in Ukraine financed by Norway | E113: Grant | F113: Planned | G113: Public, government buildings | I113: 20 | J113: Municipal | K113: 2020
C114: NEFCO, E5P | D114: Ivano-Frankivsk Energy Efficiency in Public Buildings | E114: Grant, Loan | F114: Ongoing | G114: Public, government buildings | I114: 8 | K114: 2015
C115: NEFCO, E5P | D115: Chernivtsi Energy Efficiency in Public Buildings | E115: Grant, Loan | F115: Ongoing | G115: Education and Research | H115: Doors and windows, Heating and Cooling, Insulation, General improvements | I115: 9 | J115: Municipal | K115: 2015 | M115: 33 (145.000 m2) | O115: 2,7 annually | P115: -53% heat consumption; -19% electricity consumption; -1.1 million m3 gas consumption annually; + improve the learning environment and class conditions of more than 14,000 pupils
C116: EBRD, E5P | D116: Chernivtsi District Heating | E116: Grant, Loan | G116: Apartments/multi-residential dwellings | H116: Heating and Cooling | I116: 16 | J116: Municipal | K116: 2016 | N116: 5400000 | P116: saves up to 8,890,000 m3 of natural gas and 5,800 m3 of water each year
C117: EBRD, E5P, Other | D117: Lutsk District Heating financed by EBRD loan, CTF loan to the communal enterprise “Lutskteplo”, E5P grant | E117: Grant, Loan | G117: Apartments/multi-residential dwellings | H117: Heating and Cooling | I117: 14 | J117: Municipal | K117: 2014 | P117: benefits 30,000 residential customers or 20% of the City population connected to district heating system
C118: NEFCO, E5P | D118: Zhytomyr Energy Efficiency in Public Buildings | E118: Grant, Loan | G118: Public, government buildings | I118: 4.7 | J118: Municipal | K118: 2013
C119: EBRD, E5P | D119: Zhytomyr District Heating financed | E119: Grant, Loan | I119: 16 | J119: Municipal
C120: NEFCO, E5P, Other | D120: DemoUkrainaDH financed by NEFCO, Sweden, E5P | E120: Grant, Loan | F120: Finished | G120: Apartments/multi-residential dwellings | H120: Heating and Cooling | I120: 18 | J120: Municipal | K120: 2012 | L120: 2019 | M120: 20 Projects | O120: 40 | P120: benefits 50,000 people
C121: EBRD | D121: Cherkasy Energy Efficiency Project to reduce gas and electricity consumption and improve the quality of service (client: Municipal District Heating Enterprise "Cherkasyteplokomunenergo") | E121: Loan | F121: Finished | G121: Apartments/multi-residential dwellings | H121: Heating and Cooling | I121: 10.7 | J121: Municipal | K121: 2009 | L121: 2014 | P121: Savings: -30% pipeline leakage; -10% gas and electricity consumption
C122: EBRD, E5P | D122: Ternopil District Heating | E122: Grant, Loan | G122: Apartments/multi-residential dwellings | H122: Heating and Cooling | I122: 15 | J122: Municipal | K122: 2012
C123: EBRD, E5P, Other | D123: Lviv District Heating financed by EBRD, CTF, E5P | E123: Grant, Loan | F123: Ongoing | G123: Apartments/multi-residential dwellings | H123: Heating and Cooling | I123: 31 | J123: Municipal | K123: 2011
C124: EBRD, E5P | D124: Energy Efficiency in Public Buildings (Dnipropetrovsk) | E124: Grant, Loan | G124: Public, government buildings | I124: 12.5 | J124: Municipal | K124: 2013
C125: Other | D125: Energy Efficiency Fund Ukraine receiving grant co-financing from Germany and the EU | E125: Grant | F125: Planned | G125: Apartments/multi-residential dwellings | H125: Deep renovation | I125: 100 (in grants) | K125: 2020 | L125: 2025 | M125: 16000
C126: KfW | D126: Energy Efficiency at Municipalities (German Government BMZ via KfW) | E126: Grant, Loan | F126: Planned | G126: Education and Research, Public, government buildings | H126: Doors and windows, Insulation, Heating and Cooling, General improvements | I126: 26.5 | J126: Municipal | K126: 2017 | L126: 2021 | M126: 40
B130: Regional | C130: EBRD | D130: Regional Energy Efficiency Programme (REEP) for the Western Balkans | E130: Grant, Loan | F130: Ongoing | I130: 195.09 | K130: 2013 | N130: 53000000 | O130: 558 | Q130: =SUM(N130:N132) -> 53000000 | R130: =SUM(O130:O132) -> 558
C131: EBRD, KfW, EU | D131: Regional Energy Efficiency Programme for the Western Balkans - REEP Plus | E131: Grant, Loan | F131: Ongoing | I131: 207.378 | M131: 20000
C132: GGF | D132: Green for Growth Fund | E132: Loan | F132: Ongoing | K132: 2009
B134: Total Savings of EnC | Q134: =SUM(Q7,Q17,Q34,Q43,Q52,Q67,Q83,Q98,Q107,Q130) -> 985990914 | R134: =SUM(R7,R17,R34,R43,R52,R67,R83,R98,R107,R130) -> 155334.3893

Sheet Categories (hidden)
B3: Donors | C3: Buildings | D3: Type of Financing | E3: Status | F3: Level | G3: Type of Intervention
B5: EBRD | C5: Single dwellings | D5: Grant | E5: Planned | F5: Municipal | G5: Doors and windows
B6: WB | C6: Apartments/multi-residential dwellings | D6: Loan | E6: Ongoing | F6: National | G6: Heating and Cooling
B7: EIB | C7: Retail and Services | D7: ESCO | E7: Finished | G7: Insulation
B8: GIZ | C8: Factories, warehouses, etc. | D8: Other | G8: General improvements
B9: EU | C9: Transport infrastructure | G9: Decentralized RES
B10: KfW | C10: Education and Research | G10: Automation
B11: USAID | C11: Public, government buildings | G11: Deep renovation
B12: GGF | C12: Cross sectorial
B13: UNDP | C13: Offices
B14: GGGI | C14: Tourism
B15: GCF | C15: Sports / Culture
B16: WBGF | C16: Health care
B17: NEFCO | C17: Other types of energy-consuming buildings
B18: E5P
B19: Council of Europe Development Bank (CEB)
B20: Other
